fUST/lending_fUST_20240411
["ID","MTS","AMOUNT","RATE_DAILY","PERIOD"]
[322108011,1712782247039,-673.01,0.0003452,5]
[322108013,1712782247048,-500.0,0.0003452,5]
[322108015,1712782247057,-916.34,0.0003452,5]
[322108017,1712782247066,-500.0,0.0003452,5]
[322108020,1712782247077,-500.0,0.0003452,5]
[322108021,1712782247086,-500.0,0.0003452,5]
[322108024,1712782247096,-3572.01,0.0003452,5]
[322108025,1712782247105,-500.0,0.0003452,5]
[322108027,1712782247115,-500.0,0.0003452,5]
[322108029,1712782247124,-1273.22,0.0003452,5]
[322108031,1712782247133,-2855.93,0.0003452,5]
[322108033,1712782247142,-543.36,0.0003452,5]
[322108035,1712782247151,-500.0,0.0003452,5]
[322108037,1712782247160,-647.87,0.0003452,5]
[322108039,1712782247170,-674.81,0.0003452,5]
[322108041,1712782247179,-775.17,0.0003452,5]
[322108043,1712782247187,-500.0,0.0003452,5]
[322108045,1712782247197,-500.0,0.0003452,5]
[322108047,1712782247206,-1490.23,0.0003452,5]
[322108049,1712782247215,-1211.54,0.0003452,5]
[322108051,1712782247224,-1499.46,0.0003452,5]
[322108053,1712782247233,-500.0,0.0003452,5]
[322108055,1712782247241,-575.13,0.0003452,5]
[322108057,1712782247251,-1222.75,0.0003452,5]
[322108059,1712782247259,-500.0,0.0003452,5]
[322108061,1712782247268,-684.23,0.0003452,5]
[322108063,1712782247277,-9061.16,0.0003452,5]
[322108065,1712782247286,-500.0,0.0003452,5]
[322108067,1712782247295,-2096.5,0.0003452,5]
[322108069,1712782247304,-511.52,0.0003452,5]
[322108071,1712782247313,-610.04,0.0003452,5]
[322108073,1712782247324,-902.46,0.0003452,5]
[322108075,1712782247332,-500.0,0.0003452,5]
[322108077,1712782247341,-1686.56,0.0003452,5]
[322108079,1712782247350,-3447.99,0.0003452,5]
[322108081,1712782247359,-584.36,0.0003452,5]
[322108083,1712782247368,-153.0,0.00034521,2]
[322108085,1712782247378,-153.0,0.00034521,2]
[322108087,1712782247386,-153.0,0.00034521,2]
[322108089,1712782247396,-153.0,0.00034521,2]
[322108091,1712782247405,-153.0,0.00034521,2]
[322108093,1712782247414,-153.0,0.00034521,2]
[322108095,1712782247423,-155.69882238,0.00034559,7]
[322108097,1712782247432,-5643.75576535,0.000346,2]
[322108099,1712782247441,-155.69882238,0.00034606,7]
[322108101,1712782247450,-155.69882238,0.00034615,7]
[322108103,1712782247459,-8554.29,0.00034793,5]
[322108105,1712782247468,-500.0,0.00034794,5]
[322108107,1712782247477,-500.0,0.00034794,5]
[322108109,1712782247486,-640.8111125,0.00034794,5]
[322108111,1712782247495,-613.01681099,0.00034794,5]
[322108113,1712782247504,-525.19,0.00034794,5]
[322108115,1712782247513,-500.0,0.00034794,5]
[322108117,1712782247522,-673.01,0.00034794,5]
[322108119,1712782247531,-500.0,0.00034794,5]
[322108121,1712782247540,-916.34,0.00034794,5]
[322108123,1712782247549,-500.0,0.00034794,5]
[322108125,1712782247558,-500.0,0.00034794,5]
[322108127,1712782247567,-500.0,0.00034794,5]
[322108129,1712782247577,-3572.01,0.00034794,5]
[322108131,1712782247585,-500.0,0.00034794,5]
[322108133,1712782247594,-500.0,0.00034794,5]
[322108135,1712782247603,-1273.22,0.00034794,5]
[322108136,1712782247612,-2855.93,0.00034794,5]
[322108139,1712782247622,-543.36,0.00034794,5]
[322108141,1712782247631,-500.0,0.00034794,5]
[322108142,1712782247641,-647.87,0.00034794,5]
[322108144,1712782247650,-674.81,0.00034794,5]
[322108146,1712782247663,-775.17,0.00034794,5]
[322108148,1712782247672,-500.0,0.00034794,5]
[322108150,1712782247681,-500.0,0.00034794,5]
[322108152,1712782247690,-1490.23,0.00034794,5]
[322108154,1712782247699,-1211.54,0.00034794,5]
[322108156,1712782247708,-1499.46,0.00034794,5]
[322108158,1712782247717,-500.0,0.00034794,5]
[322108160,1712782247726,-575.13,0.00034794,5]
[322108162,1712782247735,-1222.75,0.00034794,5]
[322108164,1712782247744,-500.0,0.00034794,5]
[322108175,1712782247830,-684.23,0.00034794,5]
[322108177,1712782247840,-9061.16,0.00034794,5]
[322108179,1712782247849,-500.0,0.00034794,5]
[322108181,1712782247859,-2096.5,0.00034794,5]
[322108183,1712782247868,-511.52,0.00034794,5]
[322108185,1712782247878,-610.04,0.00034794,5]
[322108187,1712782247887,-902.46,0.00034794,5]
[322108189,1712782247896,-500.0,0.00034794,5]
[322108191,1712782247905,-1686.56,0.00034794,5]
[322108193,1712782247915,-3447.99,0.00034794,5]
[322108195,1712782247924,-584.36,0.00034794,5]
[322108197,1712782247934,-153.0,0.00034795,2]
[322108199,1712782247943,-153.0,0.00034795,2]
[322108201,1712782247952,-153.0,0.00034795,2]
[322108203,1712782247961,-153.0,0.00034795,2]
[322108205,1712782247970,-155.63503246,0.00034804,7]
[322108207,1712782247979,-500.0,0.00034901,3]
[322108209,1712782247989,-596.25390228,0.00035,2]
[322108211,1712782248001,-154.84515485,0.00035,4]
[322108213,1712782248011,-668.97750328,0.00035,4]
[322108215,1712782248020,-6857.88352877,0.00035,4]
[322108217,1712782248030,-8554.29,0.00035067,5]
[322108219,1712782248039,-500.0,0.00035068,5]
[322108221,1712782248048,-500.0,0.00035068,5]
[322108223,1712782248057,-525.19,0.00035068,5]
[322108225,1712782248065,-500.0,0.00035068,5]
[322108227,1712782248075,-673.01,0.00035068,5]
[322108229,1712782248084,-500.0,0.00035068,5]
[322108231,1712782248094,-916.34,0.00035068,5]
[322108233,1712782248102,-500.0,0.00035068,5]
[322108235,1712782248111,-500.0,0.00035068,5]
[322108237,1712782248120,-500.0,0.00035068,5]
[322108239,1712782248129,-3572.01,0.00035068,5]
[322108241,1712782248138,-500.0,0.00035068,5]
[322108243,1712782248147,-500.0,0.00035068,5]
[322108245,1712782248156,-1273.22,0.00035068,5]
[322108247,1712782248165,-2855.93,0.00035068,5]
[322108249,1712782248174,-543.36,0.00035068,5]
[322108251,1712782248183,-500.0,0.00035068,5]
[322108253,1712782248191,-647.87,0.00035068,5]
[322108254,1712782248201,-674.81,0.00035068,5]
[322108255,1712782248210,-775.17,0.00035068,5]
[322108256,1712782248219,-500.0,0.00035068,5]
[322108257,1712782248228,-500.0,0.00035068,5]
[322108258,1712782248237,-1490.23,0.00035068,5]
[322108259,1712782248245,-1211.54,0.00035068,5]
[322108260,1712782248254,-1499.46,0.00035068,5]
[322108261,1712782248263,-203.96844141,0.00035068,5]
[322108262,1712782248272,-575.13,0.00035068,5]
[322108263,1712782248281,-1222.75,0.00035068,5]
[322108264,1712782248290,-500.0,0.00035068,5]
[322108265,1712782248298,-684.23,0.00035068,5]
[322108267,1712782248307,-9061.16,0.00035068,5]
[322108269,1712782248317,-500.0,0.00035068,5]
[322108271,1712782248327,-2096.5,0.00035068,5]
[322108273,1712782248337,-511.52,0.00035068,5]
[322108275,1712782248346,-610.04,0.00035068,5]
[322108277,1712782248355,-902.46,0.00035068,5]
[322108279,1712782248365,-500.0,0.00035068,5]
[322108281,1712782248374,-1686.56,0.00035068,5]
[322108283,1712782248383,-3447.99,0.00035068,5]
[322108285,1712782248393,-584.36,0.00035068,5]
[322108287,1712782248402,-155.69882238,0.00035119,7]
[322108289,1712782248411,-153.41612327,0.0003518,7]
[322108291,1712782248422,-153.2154472,0.00035244,7]
[322108293,1712782248431,-155.63503246,0.00035247,7]
[322108295,1712782248440,-153.41612327,0.00035254,7]
[322108297,1712782248450,-155.69882238,0.00035277,7]
[322108299,1712782248459,-8554.29,0.00035341,5]
[322108301,1712782248469,-500.0,0.00035342,5]
[322108303,1712782248479,-500.0,0.00035342,5]
[322108305,1712782248488,-525.19,0.00035342,5]
[322108307,1712782248498,-500.0,0.00035342,5]
[322108309,1712782248507,-673.01,0.00035342,5]
[322108311,1712782248517,-500.0,0.00035342,5]
[322108313,1712782248525,-916.34,0.00035342,5]
[322108315,1712782248535,-500.0,0.00035342,5]
[322108317,1712782248544,-500.0,0.00035342,5]
[322108319,1712782248553,-500.0,0.00035342,5]
[322108321,1712782248563,-3572.01,0.00035342,5]
[322108323,1712782248573,-500.0,0.00035342,5]
[322108325,1712782248584,-500.0,0.00035342,5]
[322108327,1712782248593,-1273.22,0.00035342,5]
[322108329,1712782248602,-2855.93,0.00035342,5]
[322108331,1712782248610,-543.36,0.00035342,5]
[322108333,1712782248620,-500.0,0.00035342,5]
[322108335,1712782248630,-647.87,0.00035342,5]
[322108337,1712782248639,-674.81,0.00035342,5]
[322108339,1712782248649,-775.17,0.00035342,5]
[322108341,1712782248658,-500.0,0.00035342,5]
[322108343,1712782248668,-500.0,0.00035342,5]
[322108345,1712782248677,-1490.23,0.00035342,5]
[322108347,1712782248686,-1211.54,0.00035342,5]
[322108349,1712782248696,-1499.46,0.00035342,5]
[322108351,1712782248705,-575.13,0.00035342,5]
[322108353,1712782248714,-1222.75,0.00035342,5]
[322108355,1712782248723,-500.0,0.00035342,5]
[322108357,1712782248732,-684.23,0.00035342,5]
[322108359,1712782248741,-9061.16,0.00035342,5]
[322108361,1712782248751,-500.0,0.00035342,5]
[322108363,1712782248760,-2096.5,0.00035342,5]
[322108365,1712782248769,-511.52,0.00035342,5]
[322108367,1712782248778,-610.04,0.00035342,5]
[322108369,1712782248787,-902.46,0.00035342,5]
[322108371,1712782248795,-500.0,0.00035342,5]
[322108372,1712782248805,-1686.56,0.00035342,5]
[322108374,1712782248814,-3447.99,0.00035342,5]
[322108377,1712782248825,-584.36,0.00035342,5]
[322108379,1712782248835,-153.0,0.00035342,2]
[322108381,1712782248845,-153.0,0.00035342,2]
[322108383,1712782248854,-153.0,0.00035342,2]
[322108385,1712782248863,-153.0,0.00035342,2]
[322108387,1712782248872,-153.0,0.00035342,2]
[322108389,1712782248881,-155.69882238,0.00035401,7]
[322108391,1712782248890,-9653.11171195,0.00035446,4]
[322108393,1712782248900,-153.2154472,0.00035523,7]
[322108395,1712782248909,-8554.29,0.00035615,5]
[322108397,1712782248918,-500.0,0.00035616,5]
[322108398,1712782248928,-500.0,0.00035616,5]
[322108401,1712782248939,-525.19,0.00035616,5]
[322108402,1712782248950,-526.6223361,0.00035616,5]
[322108405,1712782248959,-673.01,0.00035616,5]
[322108407,1712782248969,-500.0,0.00035616,5]
[322108409,1712782248978,-916.34,0.00035616,5]
[322108410,1712782248988,-500.0,0.00035616,5]
[322108412,1712782249003,-448.05401,0.00035616,5]
[322108415,1712782249013,-500.0,0.00035616,5]
[322108417,1712782249023,-3572.01,0.00035616,5]
[322108419,1712782249032,-500.0,0.00035616,5]
[322108420,1712782249043,-500.0,0.00035616,5]
[322108423,1712782249053,-1273.22,0.00035616,5]
[322108425,1712782249062,-2855.93,0.00035616,5]
[322108427,1712782249073,-543.36,0.00035616,5]
[322108428,1712782249082,-500.0,0.00035616,5]
[322108430,1712782249092,-647.87,0.00035616,5]
[322108432,1712782249101,-674.81,0.00035616,5]
[322108434,1712782249111,-775.17,0.00035616,5]
[322108436,1712782249121,-500.0,0.00035616,5]
[322108438,1712782249130,-500.0,0.00035616,5]
[322108441,1712782249140,-1490.23,0.00035616,5]
[322108442,1712782249150,-1211.54,0.00035616,5]
[322108444,1712782249160,-1499.46,0.00035616,5]
[322108446,1712782249170,-575.13,0.00035616,5]
[322108448,1712782249180,-1222.75,0.00035616,5]
[322108450,1712782249189,-500.0,0.00035616,5]
[322108452,1712782249198,-684.23,0.00035616,5]
[322108454,1712782249207,-9061.16,0.00035616,5]
[322108456,1712782249216,-500.0,0.00035616,5]
[322108458,1712782249225,-2096.5,0.00035616,5]
[322108460,1712782249234,-511.52,0.00035616,5]
[322108462,1712782249242,-610.04,0.00035616,5]
[322108464,1712782249251,-902.46,0.00035616,5]
[322108466,1712782249261,-500.0,0.00035616,5]
[322108468,1712782249270,-1686.56,0.00035616,5]
[322108470,1712782249279,-3447.99,0.00035616,5]
[322108472,1712782249288,-584.36,0.00035616,5]
[322108474,1712782249297,-5872.936041,0.00035616,120]
[322108476,1712782249306,-1332.001332,0.00035627,6]
[322108478,1712782249315,-1331.86827823,0.00035627,6]
[322108480,1712782249326,-560.0,0.00035665,2]
[322108482,1712782249335,-279.23,0.00035719,2]
[322108484,1712782249345,-279.23,0.00035719,2]
[322108486,1712782249354,-279.23,0.00035719,2]
[322108488,1712782249363,-279.23,0.00035719,2]
[322108490,1712782249373,-279.23,0.00035719,2]
[322108492,1712782249382,-279.23,0.00035719,2]
[322108494,1712782249390,-279.23,0.00035719,2]
[322108496,1712782249400,-279.23,0.00035719,2]
[322108498,1712782249409,-279.23,0.00035719,2]
[322108501,1712782249418,-279.23,0.00035719,2]
[322108502,1712782249428,-876804.91134201,0.0003572,60]
[322108504,1712782249437,-153.22223911,0.0003572,120]
[322108506,1712782249446,-390425.45384987,0.0003572,60]
[322108508,1712782249455,-150.0,0.0003572,2]
[322108511,1712782249465,-805.87401678,0.0003572,2]
[322108512,1712782249474,-1005.39621217,0.0003572,2]
[322108514,1712782249483,-574.18383548,0.0003572,2]
[322108516,1712782249492,-530.0,0.0003572,30]
[322108518,1712782249501,-250.0,0.0003572,35]
[322108520,1712782249511,-905.0,0.0003572,30]
[322108523,1712782249521,-905.0,0.0003572,30]
[322108524,1712782249530,-905.0,0.0003572,30]
[322108526,1712782249539,-905.0,0.0003572,30]
[322108528,1712782249549,-905.0,0.0003572,30]
[322108530,1712782249558,-905.0,0.0003572,30]
[322108532,1712782249568,-905.0,0.0003572,30]
[322108535,1712782249580,-905.0,0.0003572,30]
[322108537,1712782249590,-905.0,0.0003572,30]
[322108539,1712782249599,-905.0,0.0003572,30]
[322108541,1712782249609,-905.0,0.0003572,30]
[322108543,1712782249619,-905.0,0.0003572,30]
[322108545,1712782249629,-905.0,0.0003572,30]
[322108547,1712782249638,-905.0,0.0003572,30]
[322108549,1712782249647,-905.0,0.0003572,30]
[322108551,1712782249657,-905.0,0.0003572,30]
[322108553,1712782249667,-905.0,0.0003572,30]
[322108555,1712782249677,-905.0,0.0003572,30]
[322108557,1712782249686,-905.0,0.0003572,30]
[322108559,1712782249696,-905.0,0.0003572,30]
[322108561,1712782249707,-905.0,0.0003572,30]
[322108563,1712782249717,-905.0,0.0003572,30]
[322108565,1712782249726,-905.0,0.0003572,30]
[322108567,1712782249735,-905.0,0.0003572,30]
[322108569,1712782249744,-905.0,0.0003572,30]
[322108571,1712782249753,-905.0,0.0003572,30]
[322108573,1712782249761,-905.0,0.0003572,30]
[322108575,1712782249770,-905.0,0.0003572,30]
[322108576,1712782249780,-905.0,0.0003572,30]
[322108578,1712782249792,-739.43125408,0.0003572,30]
[322108580,1712782249801,-905.0,0.0003572,30]
[322108590,1712782249887,-266.33157128,0.0003572,2]
[322108592,1712782249896,-971.00623645,0.0003572,2]
[322108594,1712782249905,-500.0,0.0003572,30]
[322108597,1712782249916,-1749759.72864197,0.0003572,60]
[322108598,1712782249926,-50981.30591431,0.0003572,2]
[322108601,1712782249936,-1228557.00016377,0.0003572,60]
[322108617,1712782250190,1224.08715517,0.00028243,14]
[322108688,1712782474341,853.11974836,0.00021,2]
[322108689,1712782474371,7517.4968125,0.00021,2]
[322108690,1712782476735,2544.39782332,0.0002,2]
[322108711,1712782701064,154.9690062,0.0002,2]
[322108712,1712782702598,254.51132314,0.0002,2]
[322108713,1712782704354,154.9690062,0.0002,2]
[322108714,1712782708075,314.1997281,0.0002,2]
[322108715,1712782709614,384.7876243,0.0002,2]
[322108716,1712782718556,283.55248336,0.0002,2]
[322108717,1712782718988,154.9690062,0.0002,2]
[322108718,1712782722223,154.9690062,0.0002,2]
[322108719,1712782729602,384.7876243,0.0002,2]
[322108720,1712782729999,314.1997281,0.0002,2]
[322108721,1712782734991,154.9690062,0.0002,2]
[322108722,1712782740219,154.9690062,0.0002,2]
[322108723,1712782749619,231.85901297,0.0002,2]
[322108724,1712782755001,154.9690062,0.0002,2]
[322108725,1712782755991,314.1997281,0.0002,2]
[322108726,1712782762216,154.9690062,0.0002,2]
[322108727,1712782771009,177.73328996,0.0002,2]
[322108728,1712782772006,314.32468281,0.0002,2]
[322108729,1712782780233,158.4727978,0.0002,2]
[322108730,1712782794002,314.32468281,0.0002,2]
[322108731,1712782811169,271.90174757,0.00025999,10]
[322108732,1712782816006,314.32468281,0.0002,2]
[322108733,1712782836010,314.32468281,0.0002,2]
[322108734,1712782852015,443.61337056,0.0002,2]
[322108750,1712783227190,-151.48485454,0.00025948,2]
[322108751,1712783227214,-229.94798769,0.00027397,2]
[322108753,1712783251140,-19.52381631,0.00027397,2]
[322108754,1712783251163,-3897.74613652,0.00029999,2]
[322108914,1712783349127,-1670.19795411,0.00029999,2]
[322108915,1712783349150,-154.86062544,0.00029999,2]
[322108916,1712783349170,-691.04683546,0.00029999,2]
[322108917,1712783349192,-859.14458499,0.0003,2]
[322108918,1712783350159,-251.08832255,0.0003,2]
[322108923,1712783387442,150.0,0.00027899,2]
[322108924,1712783431086,7082.49851142,0.000291,2]
[322108960,1712783438306,-31022.58126036,0.000291,2]
[322109001,1712783440611,-4282.26993234,0.000291,2]
[322109002,1712783440626,-1216.86498304,0.000291,2]
[322109011,1712783443485,-1632.49929048,0.000291,2]
[322109012,1712783443498,-1804.323423,0.000291,2]
[322109013,1712783443510,-2593.5496536,0.000291,2]
[322109014,1712783443522,-53510.13875055,0.000291,2]
[322109015,1712783443531,-690.45445724,0.00029999,2]
[322109016,1712783443540,-156.93228267,0.00029999,2]
[322109017,1712783443549,-100.67739428,0.0003,2]
[322109018,1712783443559,-166.666666,0.00030264,2]
[322109019,1712783443569,-166.666666,0.00031089,2]
[322109020,1712783443578,-150.0,0.000315,2]
[322109021,1712783443587,-400.0,0.00031512,2]
[322109022,1712783443596,-19913.1082302,0.00031513,2]
[322109023,1712783443606,-177.22014007,0.00031646,5]
[322109024,1712783443615,-1210.91030182,0.000318,2]
[322109025,1712783443624,-166.666666,0.00031914,2]
[322109026,1712783443634,-166.666666,0.00032739,2]
[322109027,1712783443643,-500.0,0.00032876,5]
[322109028,1712783443653,-500.0,0.00032876,5]
[322109029,1712783443662,-500.0,0.00032876,5]
[322109030,1712783443672,-500.0,0.00032876,5]
[322109031,1712783443681,-500.0,0.00032876,5]
[322109032,1712783443690,-500.0,0.00032876,5]
[322109033,1712783443699,-729.23,0.00032876,5]
[322109034,1712783443709,-500.0,0.00032876,5]
[322109035,1712783443719,-500.0,0.00032876,5]
[322109036,1712783443728,-807.21,0.00032876,5]
[322109037,1712783443738,-500.0,0.00032876,5]
[322109038,1712783443748,-769.39,0.00032876,5]
[322109039,1712783443757,-500.0,0.00032876,5]
[322109040,1712783443767,-500.0,0.00032876,5]
[322109041,1712783443776,-1546.96,0.00032876,5]
[322109042,1712783443785,-500.0,0.00032876,5]
[322109043,1712783443794,-500.0,0.00032876,5]
[322109044,1712783443805,-500.0,0.00032876,5]
[322109045,1712783443814,-500.0,0.00032876,5]
[322109046,1712783443824,-4908.13,0.00032876,5]
[322109047,1712783443833,-500.0,0.00032876,5]
[322109048,1712783443842,-500.0,0.00032876,5]
[322109049,1712783443852,-500.0,0.00032876,5]
[322109050,1712783443861,-1137.06,0.00032876,5]
[322109051,1712783443870,-592.84,0.00032876,5]
[322109052,1712783443879,-500.0,0.00032876,5]
[322109053,1712783443888,-500.0,0.00032876,5]
[322109054,1712783443898,-500.0,0.00032876,5]
[322109055,1712783443907,-913.56,0.00032876,5]
[322109056,1712783443918,-1867.66,0.00032876,5]
[322109057,1712783443927,-1934.84,0.00033149,5]
[322109058,1712783443936,-689.66,0.00033149,5]
[322109059,1712783443946,-500.0,0.00033149,5]
[322109060,1712783443955,-812.21,0.00033149,5]
[322109061,1712783443964,-1084.46,0.00033149,5]
[322109062,1712783443973,-500.0,0.00033149,5]
[322109063,1712783443982,-759.99,0.00033149,5]
[322109064,1712783443991,-500.0,0.00033149,5]
[322109065,1712783444000,-406.52799518,0.00033149,5]
[322109066,1712783444009,-500.0,0.00033149,5]
[322109067,1712783444019,-551.85109524,0.0003315,5]
[322109068,1712783444030,-500.0,0.0003315,5]
[322109069,1712783444039,-500.0,0.0003315,5]
[322109070,1712783444049,-500.0,0.0003315,5]
[322109071,1712783444059,-500.0,0.0003315,5]
[322109072,1712783444069,-500.0,0.0003315,5]
[322109073,1712783444078,-729.23,0.0003315,5]
[322109074,1712783444088,-500.0,0.0003315,5]
[322109075,1712783444098,-500.0,0.0003315,5]
[322109076,1712783444108,-807.21,0.0003315,5]
[322109077,1712783444118,-500.0,0.0003315,5]
[322109078,1712783444128,-769.39,0.0003315,5]
[322109079,1712783444138,-500.0,0.0003315,5]
[322109080,1712783444149,-500.0,0.0003315,5]
[322109081,1712783444159,-1546.96,0.0003315,5]
[322109082,1712783444170,-500.0,0.0003315,5]
[322109083,1712783444179,-500.0,0.0003315,5]
[322109084,1712783444188,-500.0,0.0003315,5]
[322109085,1712783444199,-500.0,0.0003315,5]
[322109086,1712783444209,-4908.13,0.0003315,5]
[322109087,1712783444218,-500.0,0.0003315,5]
[322109088,1712783444227,-500.0,0.0003315,5]
[322109089,1712783444236,-500.0,0.0003315,5]
[322109090,1712783444246,-1137.06,0.0003315,5]
[322109091,1712783444255,-592.84,0.0003315,5]
[322109092,1712783444266,-165.68442748,0.0003315,5]
[322109093,1712783444275,-500.0,0.0003315,5]
[322109094,1712783444284,-500.0,0.0003315,5]
[322109095,1712783444293,-913.56,0.0003315,5]
[322109096,1712783444303,-1867.66,0.0003315,5]
[322109097,1712783444312,-249.471804,0.00033165,2]
[322109098,1712783444321,-1934.84,0.00033423,5]
[322109099,1712783444330,-689.66,0.00033423,5]
[322109100,1712783444339,-500.0,0.00033423,5]
[322109101,1712783444352,-812.21,0.00033423,5]
[322109102,1712783444367,-1084.46,0.00033423,5]
[322109103,1712783444376,-759.99,0.00033423,5]
[322109104,1712783444385,-500.0,0.00033423,5]
[322109105,1712783444395,-500.0,0.00033423,5]
[322109106,1712783444404,-500.0,0.00033424,5]
[322109107,1712783444413,-500.0,0.00033424,5]
[322109108,1712783444424,-364.03744185,0.00033424,5]
[322109109,1712783444435,-500.0,0.00033424,5]
[322109110,1712783444444,-500.0,0.00033424,5]
[322109111,1712783444453,-729.23,0.00033424,5]
[322109112,1712783444462,-500.0,0.00033424,5]
[322109113,1712783444471,-500.0,0.00033424,5]
[322109114,1712783444480,-807.21,0.00033424,5]
[322109115,1712783444489,-500.0,0.00033424,5]
[322109116,1712783444497,-769.39,0.00033424,5]
[322109117,1712783444506,-500.0,0.00033424,5]
[322109118,1712783444515,-348.20211384,0.00033424,5]
[322109138,1712784428151,-179.263884,0.00027397,2]
[322109139,1712784428172,-166.666666,0.00031448,2]
[322109140,1712784428195,-400.0,0.0003242,2]
[322109141,1712784428217,-175.67224415,0.00032421,2]
[322109142,1712784432158,-151.49799,0.00032421,2]
[322109337,1712784643740,-150.0,0.00030321,2]
[322109338,1712784643750,-208.86688,0.00031257,2]
[322109339,1712784643760,-400.0,0.00031447,2]
[322109340,1712784643770,-212.0,0.00031448,2]
[322109341,1712784643779,-9991.68239042,0.00031448,2]
[322109536,1712785629188,-185.609257,0.00027397,2]
[322109537,1712785629207,-160.82901455,0.00027397,2]
[322109539,1712785746134,-207.94817845,0.00027397,2]
[322109540,1712785746155,-166.666666,0.00028995,2]
[322109541,1712785746176,-300.0,0.0002939,2]
[322109542,1712785746196,-24900.0,0.00029391,2]
[322109543,1712785746216,-200.0,0.0002952,2]
[322109544,1712785746236,-166.666666,0.00029786,2]
[322109545,1712785746256,-1210.91030182,0.0003,2]
[322109546,1712785746277,-162.93637258,0.0003047,2]
[322109547,1712785746297,-469.89408815,0.00030503,4]
[322109548,1712785746316,-868.32225078,0.00030503,4]
[322109549,1712785746336,-303.74719216,0.00030503,4]
[322109550,1712785746356,-545.90247133,0.00030503,4]
[322109551,1712785746375,-407.59656825,0.00030503,4]
[322109552,1712785746394,-282.23953123,0.00030503,4]
[322109553,1712785746414,-192.96186117,0.00030503,4]
[322109554,1712785746433,-868.18863525,0.00030503,4]
[322109555,1712785746454,-68529.15086782,0.00030505,2]
[322109557,1712785797843,150.0,0.00028405,2]
[322109558,1712785812102,2494.812201,0.00029025,2]
[322109714,1712785844002,-233.9996687,0.00030505,2]
[322109715,1712785844011,-166.666666,0.00030576,2]
[322109716,1712785844020,-1211.03128397,0.00030665,2]
[322109717,1712785844031,-166.666666,0.00031367,2]
[322109718,1712785844041,-690.45445724,0.00031448,4]
[322109719,1712785844051,-156.93228267,0.00031448,20]
[322109720,1712785844060,-150.0,0.000315,2]
[322109721,1712785844070,-1210.91030182,0.000318,2]
[322109722,1712785844079,-166.666666,0.00032157,2]
[322109723,1712785844089,-400.0,0.00032388,2]
[322109724,1712785844101,-10936.00795034,0.00032389,5]
[322109725,1712785844110,-1211.03128397,0.00032505,2]
[322109726,1712785844120,-500.0,0.00032876,5]
[322109727,1712785844130,-500.0,0.00032876,5]
[322109728,1712785844139,-500.0,0.00032876,5]
[322109729,1712785844149,-500.0,0.00032876,5]
[322109730,1712785844158,-500.0,0.00032876,5]
[322109731,1712785844167,-500.0,0.00032876,5]
[322109732,1712785844177,-500.0,0.00032876,5]
[322109733,1712785844186,-500.0,0.00032876,5]
[322109734,1712785844195,-500.0,0.00032876,5]
[322109735,1712785844205,-500.0,0.00032876,5]
[322109736,1712785844214,-1934.84,0.00032876,5]
[322109737,1712785844223,-689.66,0.00032876,5]
[322109738,1712785844232,-930.69,0.00032876,5]